Cogmind - Beta 14 @@@ ROGUE MODE // 2024.12.26 @ 02:51:32 Player: nado Result: Destroyed by 18-ERO(M) with Heavy Riot Gun Performance ------------- Evolutions (4) 2000 Regions Visited (14) 2800 Robots Destroyed (93) 465 Value Destroyed (2640) 2640 Prototype IDs (19) 380 Alien Tech Used (0) 0 Bonus (985) 985 TOTAL SCORE: 9270 Bonus ------- Follower Combat Kills 85 Aligned with FarCom 300 Met Data Miner 300 Met Imprinter 300 Cogmind --------- Core Integrity 0/850 Matter 300/300 Energy 3/100 System Corruption 3% Temperature Cool (0) Movement Hovering (70) Location -6/Zion Parts ------- > --- POWER (1) -------- (None) > --- PROPULSION (4) --- Makeshift Hover Unit > --- UTILITY (8) ------ Improved Cooling System Advanced Signal Interpreter Advanced Terrain Scan Processor 0b10 Decoder Chip [Skirmisher] Hacking Suite Makeshift Hacking Suite Hacking Drone Bay (1/1) > --- WEAPON (2) ------- Heavy Pick > --- INVENTORY (5) ---- Fission Core Spiked Medium Treads Improved Cryofiber Web Beamcaster Katana Peak State ------------ > --- POWER ------------ Fusion Compressor > --- PROPULSION ------- Improved Gravmag System Improved Gravmag System Improved Gravmag System Improved Gravmag System > --- UTILITY ---------- Improved Cryofiber Web Coolant Injector Improved Signal Interpreter Advanced Terrain Scan Processor 0b10 Decoder Chip [Skirmisher] ECM Suite Layered Light Armor Plating Hacking Suite > --- WEAPON ----------- Katana Heavy Pick > --- INVENTORY -------- Light Nuclear Core Light Fission Core Improved Gravmag System Improved Gravmag System Long-range Missile Launcher [Rating: 64] Favorites ----------- Power Ion Engine Engine Ion Engine Power Core Neutrino Core Propulsion Light Treads Treads Light Treads Hover Unit Improved Gravmag System Flight Unit Cesium-ion Thruster Utility Huge Storage Unit Device ECM Suite Storage Huge Storage Unit Processor Improved Signal Interpreter Hackware Hacking Suite Protection Light Armor Plating Weapon Assault Rifle Energy Gun Particle Gun Energy Cannon Ion Cannon Ballistic Gun Assault Rifle Launcher Rocket Launcher Special Weapon Mining Laser Slashing Weapon Katana Piercing Weapon Heavy Pick Build | -11 -10 -10 -10 -9 -8 -8 -7 -7 -7 -6 -6 -6 -6 -6 ------- Run | Yrd Mat Min Exi Min Mat Sto Fac Low Dat Pro Fac Low Low Zio Slots Evolved 8 | . . . . . 4 . 2 . . . 2 . . . Power . | . . . . . . . . . . . . . . . Propulsion 2 | . . . . . 1 . 1 . . . . . . . Utility 6 | . . . . . 3 . 1 . . . 2 . . . Weapon . | . . . . . . . . . . . . . . . Parts Attached 104 | 6 10 5 1 7 17 19 14 . . . 14 1 4 6 Power 14 | 1 1 1 . 3 1 3 1 . . . 2 . 1 . Engine 3 | 1 1 1 . . . . . . . . . . . . Core 11 | . . . . 3 1 3 1 . . . 2 . 1 . Reactor . | . . . . . . . . . . . . . . . Propulsion 34 | 2 4 3 . 1 3 8 5 . . . 5 . 2 1 Treads 22 | 2 4 3 . 1 3 8 1 . . . . . . . Leg . | . . . . . . . . . . . . . . . Wheel . | . . . . . . . . . . . . . . . Hover 7 | . . . . . . . . . . . 4 . 2 1 Flight 5 | . . . . . . . 4 . . . 1 . . . Utility 33 | 1 3 1 1 1 8 4 4 . . . 5 1 . 4 Device 11 | . . . . . 5 2 1 . . . 1 . . 2 Storage 4 | 1 2 . . . . . . . . . . 1 . . Processor 6 | . . . 1 1 1 . . . . . 2 . . 1 Hackware 4 | . . . . . . . 2 . . . 1 . . 1 Protection 8 | . 1 1 . . 2 2 1 . . . 1 . . . Artifact . | . . . . . . . . . . . . . . . Weapon 23 | 2 2 . . 2 5 4 4 . . . 2 . 1 1 Energy Gun 2 | . . . . 1 1 . . . . . . . . . Energy Cannon 4 | . . . . . 2 2 . . . . . . . . Ballistic Gun 8 | 2 2 . . . 1 2 . . . . . . . 1 Ballistic Cannon . | . . . . . . . . . . . . . . . Launcher 5 | . . . . 1 . . 3 . . . . . 1 . Special Weapon 1 | . . . . . 1 . . . . . . . . . Impact Weapon . | . . . . . . . . . . . . . . . Slashing Weapon 2 | . . . . . . . 1 . . . 1 . . . Piercing Weapon 1 | . . . . . . . . . . . 1 . . . Special Melee Weapon . | . . . . . . . . . . . . . . . Unidentified Prototypes 6 | . . . 2 . 1 1 1 . . . . . . 1 Corrupted Parts 4 | . . . . 4 . . . . . . . . . . System Corruption 11 | . . . . 11 . . . . . . . . . . Parts Lost 36 | . 1 3 . 3 3 5 . . . . 8 . 9 4 Power 8 | . 1 1 . 1 1 1 . . . . 1 . 1 1 Propulsion 14 | . . 2 . . 1 2 . . . . 3 . 5 1 Utility 8 | . . . . . . 2 . . . . 3 . 2 1 Weapon 6 | . . . . 2 1 . . . . . 1 . 1 1 Highest Loss Streak 8 | . 1 2 . 3 1 3 . . . . 8 . 5 4 To Critical Strikes 2 | . . . . . . 1 . . . . . . 1 . Average Slot Usage (%) 90 | . 85 98 94 73 93 97 96 100 100 100 93 100 87 73 Engine 5 | . 12 13 14 8 . . . . . . . . . . Core 4 | . . . . . 8 8 7 7 7 7 5 6 6 5 Treads 17 | . 28 27 28 20 23 26 8 . . . . . . . Hover 3 | . . . . . . . . . . . 13 26 20 7 Flight 2 | . . . . . . . 20 30 30 30 10 . . . Device 9 | . . . . . 18 18 16 15 15 15 15 13 13 14 Storage 8 | . 14 14 14 14 9 9 2 . . . . 5 4 . Processor 8 | . . . . 9 9 9 7 7 7 7 15 20 20 23 Hackware 2 | . . . . . . . 9 15 15 15 11 6 6 7 Protection 7 | . 2 13 8 . 9 7 7 7 7 7 5 6 4 . Energy Cannon 1 | . . . . . 3 4 4 . . . . . . . Ballistic Gun 14 | . 28 28 28 14 2 12 . . . . . . . 5 Piercing Weapon 1 | . . . . . . . . . . . 5 6 6 6 Peak Build Rating 64 | 6 9 11 16 17 39 45 46 41 41 41 64 64 63 62 Average Rating 29 | 3 6 10 11 11 34 39 39 41 41 41 54 60 54 48 On Entrance 30 | . 6 9 11 12 17 37 34 41 41 41 41 64 61 37 Naked Turns . | . . . . . . . . . . . . . . . Heaviest Build 105 | 14 90 92 92 89 105 105 105 17 17 17 20 29 35 26 Greatest Support 92 | 40 40 40 40 40 60 64 92 21 21 21 40 40 40 22 Greatest Overweight (x) 4 | 1 2 4 2 4 2 2 4 . . . 3 . 1 2 Average Overweight (x) . | . . 2 2 2 1 1 . . . . . . . 1 Largest Inventory Capacity 25 | 8 25 25 25 25 25 25 25 5 5 5 5 10 10 5 Average Capacity 17 | 6 15 25 25 25 25 25 12 5 5 5 5 9 8 5 Most Carried 25 | 3 19 25 25 25 25 25 25 5 5 5 5 7 7 5 Average Carried 16 | 2 10 22 24 24 23 24 12 5 5 5 4 5 5 4 Final Capacity 25 | 8 25 25 25 25 25 25 5 5 5 5 5 10 5 5 Final Carried 25 | 3 19 25 25 22 24 25 5 5 5 5 5 7 4 5 Class Distribution -------------------- 63% | Mutant 14% | Derelict-Mutant 12% | Skirmisher 6% | Hacker-Sprinter Dominant Class ---------------- Mutant | -10/Materials Mutant | -10/Mines Mutant | -10/Exiles Mutant | -9/Mines Skirmisher | -8/Materials Skirmisher | -8/Storage Hacker-Sprinter | -7/Factory Hacker-Sprinter | -7/Lower Caves Hacker-Sprinter | -7/Data Miner Hacker-Sprinter | -6/Proximity Caves Mutant | -6/Factory Mutant | -6/Lower Caves Mutant | -6/Lower Caves Derelict-Mutant | -6/Zion Resources | -11 -10 -10 -10 -9 -8 -8 -7 -7 -7 -6 -6 -6 -6 -6 ----------- Run | Yrd Mat Min Exi Min Mat Sto Fac Low Dat Pro Fac Low Low Zio Matter Collected 2798 | 147 531 253 . 107 263 871 44 109 . 20 79 229 85 60 Remotely 160 | . . . . . 160 . . . . . . . . . Salvage Created 3652 | . 552 365 . 87 477 1544 121 . . . 198 194 114 . Parts 203 | . 33 24 . 6 19 80 8 . . . 13 8 12 . Haulers Intercepted 8 | . 2 . . . 1 4 . . . . 1 . . . Recyclers Shooed 4 | . 1 1 . . . 2 . . . . . . . . Parts Field Recycled . | . . . . . . . . . . . . . . . Retrieved Matter . | . . . . . . . . . . . . . . . Parts Self-Destructed 8 | . . . . . . . . . . . . . 5 3 Prevented . | . . . . . . . . . . . . . . . Kills | -11 -10 -10 -10 -9 -8 -8 -7 -7 -7 -6 -6 -6 -6 -6 ------- Run | Yrd Mat Min Exi Min Mat Sto Fac Low Dat Pro Fac Low Low Zio Combat Hostiles Destroyed 66 | . 11 10 . 2 9 20 5 . . . 1 . 8 . Melee 3 | . . . . . 1 . 1 . . . 1 . . . Guns 44 | . 11 10 . 2 6 15 . . . . . . . . Cannons 7 | . . . . . 1 5 1 . . . . . . . AOE 11 | . . . . . . . 3 . . . . . 8 . Classes Destroyed 13 | . 5 2 . 1 1 2 . . . . 1 1 . . Worker 5 | . 1 . . . . 4 . . . . . . . . Builder 4 | . . . . . . 2 . . . . 2 . . . Tunneler 1 | . . 1 . . . . . . . . . . . . Hauler 8 | . 2 . . . 1 4 . . . . 1 . . . Recycler 6 | . . 1 . . 2 3 . . . . . . . . Watcher 3 | . 2 . . . . 1 . . . . . . . . Swarmer 21 | . 3 6 . . . . 4 . . . . . 8 . Grunt 33 | . 8 4 . 1 8 12 . . . . . . . . Duelist 2 | . . . . 1 . 1 . . . . . . . . Sentry 8 | . . . . . 1 6 1 . . . . . . . Hunter 1 | . . . . . . 1 . . . . . . . . Programmer 1 | . . . . . . . . . . . 1 . . . Packrat 1 | . . . . . . . . . . . . 1 . . Samaritan 3 | . . . . . . . . . . . . 2 1 . Best Kill Streak 6 | . 2 4 . 1 3 6 3 . . . 2 . 4 . Combat Bots Only 4 | . 2 3 . 1 3 3 3 . . . 1 . 4 . Max Kills in Single Turn 3 | . 1 1 . 1 1 2 1 . . . 1 1 3 . Gunslinging . | . . . . . . . . . . . . . . . Exploded 3 | . . . . . . . 1 . . . . . 3 . Melee 1 | . . . . . 1 . 1 . . . 1 . . . Uniques/NPCs Destroyed . | . . . . . . . . . . . . . . . Combat | -11 -10 -10 -10 -9 -8 -8 -7 -7 -7 -6 -6 -6 -6 -6 -------- Run | Yrd Mat Min Exi Min Mat Sto Fac Low Dat Pro Fac Low Low Zio Hostile Shots Fired 638 | . 60 58 . 23 77 130 11 6 . 32 95 15 67 64 Missed 208 | . 17 12 . 6 18 30 4 4 . 26 37 7 29 18 Damage Taken 6034 | . 475 497 . 242 806 1437 96 30 . 73 906 144 742 586 Core 1437 | . 60 106 . 72 130 148 39 . . 32 443 35 152 220 Absorbed by Shields . | . . . . . . . . . . . . . . . Redirected to Shielding 110 | . . . . . . . 26 10 . 7 67 . . . Ignored by Resistances 178 | . . . . . 106 72 . . . . . . . . Regen/Repaired (Parts) 22 | . . . . . . . . . . . 22 . . . Core Remaining (%) 60 | 100 . . . 4 . 49 . . . 89 . . . . Volleys Fired 261 | . 56 31 . 17 35 112 6 . . . . . 4 . Largest 2 | . 2 2 . 2 2 2 2 . . . . . 1 . Hottest 165 | . 40 40 . 65 165 120 120 . . . . . 43 . Shots Fired 495 | . 113 64 . 22 63 220 9 . . . . . 4 . Gun 424 | . 113 64 . 22 47 178 . . . . . . . . Cannon 57 | . . . . . 9 42 6 . . . . . . . Launcher 7 | . . . . . . . 3 . . . . . 4 . Special 7 | . . . . . 7 . . . . . . . . . Kinetic 383 | . 113 64 . 16 12 178 . . . . . . . . Thermal 96 | . . . . 6 42 42 6 . . . . . . . Explosive 7 | . . . . . . . 3 . . . . . 4 . Electromagnetic 9 | . . . . . 9 . . . . . . . . . Robot Hit Streak 24 | . 9 9 . 7 11 17 24 . . . . . 1 . Robot Miss Streak 6 | . 4 3 . 1 6 4 2 . . . . . 3 . Penetration Max . | . . . . . . . . . . . . . . . Secondary Targets 3 | . . 2 . 1 . . . . . . . . . . Max Gunslinging Chain 1 | . . 1 . 1 . . . . . . . . . . Shots Hit Robots 374 | . 72 42 . 18 49 155 9 . . . 21 3 3 2 Core Hits 167 | . 31 18 . 5 33 53 9 . . . 4 2 11 1 Critical Kills . | . . . . . . . . . . . . . . . Critical Parts Destroyed . | . . . . . . . . . . . . . . . Critical Strikes 9 | . . . . . 5 . . . . . 4 . . . Burn 4 | . . . . . 4 . . . . . . . . . Corrupt 1 | . . . . . 1 . . . . . . . . . Sever 2 | . . . . . . . . . . . 2 . . . Impale 2 | . . . . . . . . . . . 2 . . . Melee Attacks 55 | . . . . . . . 5 . . . 41 4 2 3 Impact . | . . . . . . . . . . . . . . . Slashing 12 | . . . . . . . 5 . . . 6 1 . . Piercing 43 | . . . . . . . . . . . 35 3 2 3 Sneak Attacks 9 | . . . . . . . . . . . 4 3 2 . Combat Hostiles . | . . . . . . . . . . . . . . . Follow-up Attacks . | . . . . . . . . . . . . . . . Damage Inflicted 8252 | . 937 580 . 237 912 2979 523 . . . 1035 223 754 72 Guns 4406 | . 890 555 . 237 584 2140 . . . . . . . . Cannons 1081 | . . . . . 190 753 138 . . . . . . . Explosions 926 | . . . . . . . 302 . . . . . 624 . Melee 1543 | . . . . . . . 83 . . . 1035 223 130 72 Ramming 176 | . 47 25 . . 18 86 . . . . . . . . Kinetic 3878 | . 890 555 . 165 128 2140 . . . . . . . . Thermal 1539 | . . . . 72 576 753 138 . . . . . . . Explosive 926 | . . . . . . . 302 . . . . . 624 . Electromagnetic 190 | . . . . . 190 . . . . . . . . . Impact . | . . . . . . . . . . . . . . . Slashing 275 | . . . . . . . 83 . . . 192 . . . Piercing 1268 | . . . . . . . . . . . 843 223 130 72 Highest Corruption 12 | . 1 1 1 12 . . . . . . . . . 3 Average Corruption 1 | . 1 1 1 1 . . . . . . . . . 2 Corruption Purged . | . . . . . . . . . . . . . . . Corruption Blocked . | . . . . . . . . . . . . . . . Effects 33 | . 4 19 7 2 . . . . . . . . . 1 Message Errors 7 | . 1 3 2 1 . . . . . . . . . . Matter Fused 7 | . . 3 3 1 . . . . . . . . . . Energy Discharges 7 | . . 5 1 . . . . . . . . . . 1 Data Loss (minor) 4 | . 1 2 1 . . . . . . . . . . . Data Loss (major) 2 | . . 2 . . . . . . . . . . . . Misfires 3 | . 1 2 . . . . . . . . . . . . Alerts 3 | . 1 2 . . . . . . . . . . . . Overload Shots . | . . . . . . . . . . . . . . . Overflow Damage 236 | . . . . . . 18 . . . . 169 49 . . Projectiles 11 | . . . . . . 11 . . . . . . . . Explosions . | . . . . . . . . . . . . . . . Melee 225 | . . . . . . 7 . . . . 169 49 . . Knockbacks 1 | . . . . . . 1 . . . . . . . . Impact 1 | . . . . . . 1 . . . . . . . . Kinetic . | . . . . . . . . . . . . . . . Secondary . | . . . . . . . . . . . . . . . Self-Inflicted Damage 14 | . . . . . . . . . . . . . 14 . Shots 2 | . . . . . . . . . . . . . 2 . Rammed 19 | . 7 5 . . . 7 . . . . . . . . Targets Rammed 28 | . 8 6 . . 2 12 . . . . . . . . Kicked . | . . . . . . . . . . . . . . . Crushed 9 | . 1 1 . . 2 5 . . . . . . . . Highest Temperature 454 | . 20 18 . 154 454 143 2 . . . . . 16 . Average Temperature 82 | . 6 6 . 85 151 36 2 . . . . . 7 . Received Heat Transfer 2219 | . 255 186 . 84 576 684 . . . 6 12 54 250 112 Effects 10 | . . . . . 10 . . . . . . . . . Shutdowns 2 | . . . . . 2 . . . . . . . . . Energy Bleed 1 | . . . . . 1 . . . . . . . . . Interference 2 | . . . . . 2 . . . . . . . . . Damage (minor) 1 | . . . . . 1 . . . . . . . . . Damage (major) 4 | . . . . . 4 . . . . . . . . . Siege Activations . | . . . . . . . . . . . . . . . Robots Corrupted 1 | . . . . . 1 . . . . . . . . . Combat Hostiles 1 | . . . . . 1 . . . . . . . . . Parts Fried 1 | . . . . . 1 . . . . . . . . . Impact Corruptions 1 | . . . . . . 1 . . . . . . . . Robots Melted . | . . . . . . . . . . . . . . . Combat Hostiles . | . . . . . . . . . . . . . . . Parts Melted 7 | . . . . . 4 3 . . . . . . . . Heat Transferred 3050 | . . . . 185 1422 1221 222 . . . . . . . Parts Sabotaged . | . . . . . . . . . . . . . . . Parts Stolen . | . . . . . . . . . . . . . . . Parts Stripped . | . . . . . . . . . . . . . . . Power Chain Reactions . | . . . . . . . . . . . . . . . Alert | -11 -10 -10 -10 -9 -8 -8 -7 -7 -7 -6 -6 -6 -6 -6 ------- Run | Yrd Mat Min Exi Min Mat Sto Fac Low Dat Pro Fac Low Low Zio Peak Influence 287 | . 241 106 . 30 114 287 194 . . . 58 . . . Initial 91 | . . 2 . . 7 31 91 . . . . . . . Average 56 | . 89 22 . 10 31 117 105 . . . 14 . . . Maximum Alert Level 1 | . 1 . . . . 1 . . . . . . . . Low Security (%) 95 | 100 93 100 . 100 100 80 100 . . . 100 . . . Level 1 4 | . 6 . . . . 19 . . . . . . . . Level 2 . | . . . . . . . . . . . . . . . Level 3 . | . . . . . . . . . . . . . . . Level 4 . | . . . . . . . . . . . . . . . Level 5 . | . . . . . . . . . . . . . . . High Security . | . . . . . . . . . . . . . . . Max Security . | . . . . . . . . . . . . . . . Squads Dispatched 19 | . 2 . . . 3 5 2 . . . 7 . . . Investigation 12 | . 1 . . . 2 2 1 . . . 6 . . . Extermination 1 | . . . . . . . 1 . . . . . . . Reinforcement 3 | . 1 . . . . 1 . . . . 1 . . . Assault . | . . . . . . . . . . . . . . . Garrison 3 | . . . . . 1 2 . . . . . . . . Intercept . | . . . . . . . . . . . . . . . Searches Triggered . | . . . . . . . . . . . . . . . Data Miner Redirects 1 | . . . . . . . . . . . 1 . . . Construction Impeded . | . . . . . . . . . . . . . . . Haulers Reinforced 1 | . . . . . . . . . . . 1 . . . Active Scanning Responses . | . . . . . . . . . . . . . . . Cargo Convoy Interrupts . | . . . . . . . . . . . . . . . Stealth | -11 -10 -10 -10 -9 -8 -8 -7 -7 -7 -6 -6 -6 -6 -6 --------- Run | Yrd Mat Min Exi Min Mat Sto Fac Low Dat Pro Fac Low Low Zio Distress Signals 5 | . . . . . 1 4 . . . . . . . . Communications Jammed . | . . . . . . . . . . . . . . . Distress Signals . | . . . . . . . . . . . . . . . Times Spotted 138 | . 25 10 . 2 11 28 6 3 . 6 10 7 26 4 Peak Tracking Total 8 | . 4 3 . 2 3 4 3 3 . 5 3 7 5 8 Tactical Retreats 21 | . 1 . . . . 4 1 2 . 1 4 1 6 1 Traps | -11 -10 -10 -10 -9 -8 -8 -7 -7 -7 -6 -6 -6 -6 -6 ------- Run | Yrd Mat Min Exi Min Mat Sto Fac Low Dat Pro Fac Low Low Zio Traps Triggered 5 | . 4 1 . . . . . . . . . . . . Indirectly . | . . . . . . . . . . . . . . . Trap Hack Attempts . | . . . . . . . . . . . . . . . Triggered . | . . . . . . . . . . . . . . . Disarmed . | . . . . . . . . . . . . . . . Reprogrammed . | . . . . . . . . . . . . . . . Reused . | . . . . . . . . . . . . . . . Traps Extracted . | . . . . . . . . . . . . . . . Installed 2 | . . . . . . . . 2 . . . . . . Triggered 3 | . . . . . . . . . . 2 . . 1 . Machines | -11 -10 -10 -10 -9 -8 -8 -7 -7 -7 -6 -6 -6 -6 -6 ---------- Run | Yrd Mat Min Exi Min Mat Sto Fac Low Dat Pro Fac Low Low Zio Machines Disabled 6 | . 1 . . . 1 2 2 . . . . . . . Max in Single Turn 1 | . 1 . . . 1 1 1 . . . . . . . Garrison Access 1 | . . . . . . 1 . . . . . . . . Machines Repaired . | . . . . . . . . . . . . . . . Machines Dismantled . | . . . . . . . . . . . . . . . Machines Sabotaged . | . . . . . . . . . . . . . . . Overloaded Fab Kills . | . . . . . . . . . . . . . . . Hacking | -11 -10 -10 -10 -9 -8 -8 -7 -7 -7 -6 -6 -6 -6 -6 --------- Run | Yrd Mat Min Exi Min Mat Sto Fac Low Dat Pro Fac Low Low Zio Machines Accessed 34 | . 3 1 . . 4 8 2 2 4 . 9 1 . . Terminals 22 | . 3 . . . 3 6 2 . . . 7 1 . . Fabricators 1 | . . . . . . . . . . . 1 . . . Repair Stations 2 | . . . . . . 1 . . . . 1 . . . Recycling Units . | . . . . . . . . . . . . . . . Scanalyzers 1 | . . . . . 1 . . . . . . . . . Garrison Access 1 | . . . . . . 1 . . . . . . . . Total Hacks 121 | . 12 1 . . 15 26 5 3 27 . 25 7 . . Successful 76 | . 6 1 . . 8 6 4 3 27 . 14 7 . . Failed 45 | . 6 . . . 7 20 1 . . . 11 . . . Catastrophic 7 | . . . . . 2 4 . . . . 1 . . . Database Lockouts . | . . . . . . . . . . . . . . . Manual 57 | . 11 . 1 . 13 11 4 . . . 15 . . 2 Terminals 79 | . 12 . . . 13 21 5 . . . 21 7 . . Fabricators 2 | . . . . . . . . . . . 2 . . . Repair Stations 6 | . . . . . . 4 . . . . 2 . . . Recycling Units . | . . . . . . . . . . . . . . . Scanalyzers 2 | . . . . . 2 . . . . . . . . . Garrison Access 1 | . . . . . . 1 . . . . . . . . Terminal Hacks 57 | . 3 1 . . 4 3 2 3 27 . 7 7 . . Record 18 | . . . . . . . . 2 7 . 2 7 . . Part Schematic 10 | . . . . . . . . . 10 . . . . . Robot Schematic 7 | . . . . . . . . . 7 . . . . . Robot Analysis 1 | . . . . . . . 1 . . . . . . . Prototype ID Bank 4 | . . . . . 1 . . . 3 . . . . . Open Door 3 | . . 1 . . . 1 . 1 . . . . . . Branch Access Points 3 | . 1 . . . 1 . . . . . 1 . . . Terminal Index 5 | . 1 . . . 1 1 1 . . . 1 . . . Unreport Threat 4 | . . . . . 1 1 . . . . 2 . . . Recall Investigation 1 | . . . . . . . . . . . 1 . . . Registered Components 1 | . 1 . . . . . . . . . . . . . Fabricator Hacks 2 | . . . . . . . . . . . 2 . . . Load Schematic 1 | . . . . . . . . . . . 1 . . . Build 1 | . . . . . . . . . . . 1 . . . Repair Station Hacks 3 | . . . . . . 1 . . . . 2 . . . Scan Component 2 | . . . . . . 1 . . . . 1 . . . Repair 1 | . . . . . . . . . . . 1 . . . Recycling Unit Hacks . | . . . . . . . . . . . . . . . Scanalyzer 2 | . . . . . 2 . . . . . . . . . Insert Component 1 | . . . . . 1 . . . . . . . . . Analyze 1 | . . . . . 1 . . . . . . . . . Garrison Access Hacks 1 | . . . . . . 1 . . . . . . . . Seal Access 1 | . . . . . . 1 . . . . . . . . Unauthorized Hacks 11 | . 3 . . . 2 1 2 . . . 3 . . . Terminals 11 | . 3 . . . 2 1 2 . . . 3 . . . Botnet 11 | . 3 . . . 2 1 2 . . . 3 . . . Fabricators . | . . . . . . . . . . . . . . . Repair Stations . | . . . . . . . . . . . . . . . Recycling Units . | . . . . . . . . . . . . . . . Scanalyzers . | . . . . . . . . . . . . . . . Garrison Access . | . . . . . . . . . . . . . . . Data Cores Recovered . | . . . . . . . . . . . . . . . Used . | . . . . . . . . . . . . . . . Hacking Detections 24 | . 3 . . . 3 7 2 . . . 8 1 . . Full Trace Events 12 | . . . . . 2 3 1 . . . 6 . . . Feedback Events . | . . . . . . . . . . . . . . . Feedback Blocked . | . . . . . . . . . . . . . . . Robot Schematics Acquired 11 | . . . . . . . . . 7 . . . . 4 Robots Built . | . . . . . . . . . . . . . . . Authchips . | . . . . . . . . . . . . . . . Time . | . . . . . . . . . . . . . . . Total Robot Build Rating . | . . . . . . . . . . . . . . . Part Schematics Acquired 25 | . . . . . 1 . . . 10 . . . . 14 Parts Built 1 | . . . . . . . . . . . 1 . . . Authchips . | . . . . . . . . . . . . . . . Time 152 | . . . . . . . . . . . 152 . . . Total Part Build Rating 5 | . . . . . . . . . . . 5 . . . Parts Repaired 1 | . . . . . . . . . . . 1 . . . Time 38 | . . . . . . . . . . . 38 . . . Parts Recycled . | . . . . . . . . . . . . . . . Recycled Matter . | . . . . . . . . . . . . . . . Retrieved Matter . | . . . . . . . . . . . . . . . Retrieved Components . | . . . . . . . . . . . . . . . Parts Scanalyzed 1 | . . . . . 1 . . . . . . . . . Part Schematics Acquired 1 | . . . . . 1 . . . . . . . . . Parts Damaged . | . . . . . . . . . . . . . . . Bothacking | -11 -10 -10 -10 -9 -8 -8 -7 -7 -7 -6 -6 -6 -6 -6 ------------ Run | Yrd Mat Min Exi Min Mat Sto Fac Low Dat Pro Fac Low Low Zio Used RIF Installer . | . . . . . . . . . . . . . . . Robots Hacked . | . . . . . . . . . . . . . . . Non-combat . | . . . . . . . . . . . . . . . Combat . | . . . . . . . . . . . . . . . Robot Hacks Applied . | . . . . . . . . . . . . . . . Relay Couplers Released . | . . . . . . . . . . . . . . . Fabnet Peak Effective % . | . . . . . . . . . . . . . . . Robots Rewired . | . . . . . . . . . . . . . . . Allies Hacked . | . . . . . . . . . . . . . . . Hacks Repelled . | . . . . . . . . . . . . . . . Allies | -11 -10 -10 -10 -9 -8 -8 -7 -7 -7 -6 -6 -6 -6 -6 -------- Run | Yrd Mat Min Exi Min Mat Sto Fac Low Dat Pro Fac Low Low Zio Total Allies 3 | . . 3 . . . . . . . . . . . . Largest Group 2 | . . 2 2 . . . . . . . . . . . Highest-Rated Group 49 | . . 49 49 . . . . . . . . . . . Highest-Rated Ally 31 | . . 31 31 . . . . . . . . . . . Total Orders . | . . . . . . . . . . . . . . . Ally Attacks 6 | . . . . . . . 6 . . . . . . . Total Damage 374 | . . . . . . . 374 . . . . . . . Kills 3 | . . . . . . . 3 . . . . . . . Allies Corrupted . | . . . . . . . . . . . . . . . Allies Melted . | . . . . . . . . . . . . . . . Turrets Deployed 1 | . . . . . . . 1 . . . . . . . Intel | -11 -10 -10 -10 -9 -8 -8 -7 -7 -7 -6 -6 -6 -6 -6 ------- Run | Yrd Mat Min Exi Min Mat Sto Fac Low Dat Pro Fac Low Low Zio Robot Analysis Total 1 | . . . . . . . 1 . . . . . . . Derelict Logs Recovered 10 | . . 3 . . . . . 2 . 1 . 1 1 2 Drone Launches . | . . . . . . . . . . . . . . . Drone Recoveries . | . . . . . . . . . . . . . . . Decoded 0b10 Intel 13 | . . . . . . . . . . . 13 . . . Garrisons 2 | . . . . . . . . . . . 2 . . . Patrols 6 | . . . . . . . . . . . 6 . . . Investigations 4 | . . . . . . . . . . . 4 . . . Guards 1 | . . . . . . . . . . . 1 . . . Exploration | -11 -10 -10 -10 -9 -8 -8 -7 -7 -7 -6 -6 -6 -6 -6 ------------- Run | Yrd Mat Min Exi Min Mat Sto Fac Low Dat Pro Fac Low Low Zio Turns Passed 12948 | 74 1301 3087 890 279 1159 1646 610 229 32 90 569 313 439 2230 Spaces Moved 8645 | 47 527 923 253 50 361 512 832 872 123 334 904 625 740 1542 Core 16 | 15 . . . . . . . . . . 1 . . . Treads 2737 | 32 527 923 253 50 361 512 79 . . . . . . . Legs . | . . . . . . . . . . . . . . . Wheels . | . . . . . . . . . . . . . . . Hover 3370 | . . . . . . . . . . . 463 625 740 1542 Flight 2522 | . . . . . . . 753 872 123 334 440 . . . Fastest Speed 26 | 50 160 320 320 320 243 230 26 26 26 26 26 48 48 61 Average Speed 130 | 133 199 320 320 390 273 233 47 26 26 26 38 48 56 142 Slowest Speed 480 | 160 320 480 320 480 325 320 330 26 26 26 200 48 110 160 Overloaded Moves . | . . . . . . . . . . . . . . . Propulsion Burnouts . | . . . . . . . . . . . . . . . Robots Hopped . | . . . . . . . . . . . . . . . Cave-ins Triggered . | . . . . . . . . . . . . . . . Time Travels 1 | . . . 1 . . . . . . . . . . . Exploration Rate (%) 56 | 4 71 99 61 11 24 78 14 92 75 57 26 73 76 90 Regions Visited 14 Branch Regions 10 Pre-discovered Areas 6 | . . 3 . . . . . . 1 . . 2 . . Known Exits Taken 11 | . 1 . . 1 1 1 1 1 1 1 1 1 1 . Unknown Exits Taken 3 | 1 . 1 1 . . . . . . . . . . . Scrap Searched 12 | . . 1 . . . . . 2 . 2 . 1 1 5 Spaces Dug 15 | . . . . . . . 2 . . . 13 . . . Terrain Destroyed 114 | . . . . . 2 2 15 . . . 13 . 82 . Melee 15 | . . . . . . . 2 . . . 13 . . . Projectile 4 | . . . . . 2 2 . . . . . . . . AOE 95 | . . . . . . . 13 . . . . . 82 . Terrain Rammed . | . . . . . . . . . . . . . . . Walls Destroyed . | . . . . . . . . . . . . . . . Machines Disabled . | . . . . . . . . . . . . . . . Actions | -11 -10 -10 -10 -9 -8 -8 -7 -7 -7 -6 -6 -6 -6 -6 --------- Run | Yrd Mat Min Exi Min Mat Sto Fac Low Dat Pro Fac Low Low Zio Total 9754 | 55 657 983 337 114 454 805 1036 873 122 336 1041 631 750 1560 Wait 533 | . 32 3 76 38 26 118 157 . . 1 78 . . 4 Move 8631 | 46 526 922 252 49 360 511 831 871 122 333 903 624 739 1542 Hop . | . . . . . . . . . . . . . . . Pick Up 70 | 3 17 12 3 1 7 11 6 . . 1 4 2 1 2 Fast Attach 49 | 6 7 3 1 . 5 7 4 . . . 9 1 . 6 Attach 34 | . . 2 . 6 8 4 7 . . . 4 . 3 . Detach 15 | . 2 . 1 2 2 2 4 . . . 1 . . 1 Swap 21 | . 3 . . 1 4 8 3 . . . 1 . 1 . Drop 58 | . 6 4 4 . 5 20 13 . . 1 2 1 . 2 Fire 261 | . 56 31 . 17 35 112 6 . . . . . 4 . Melee 52 | . . . . . . . 5 . . . 39 3 2 3 Ram . | . . . . . . . . . . . . . . . Kick . | . . . . . . . . . . . . . . . Crush 28 | . 8 6 . . 2 12 . . . . . . . . Escape Stasis . | . . . . . . . . . . . . . . . Rewire . | . . . . . . . . . . . . . . . Trap 2 | . . . . . . . . 2 . . . . . . Miscellaneous . | . . . . . . . . . . . . . . . Route ------- -11/Scrapyard -10/Materials (discovered 3 exits: [*Mat] / *Min x2) -10/Mines (discovered 4 exits: [*Mat x2] / *Exi / [*Sub]) -10/Exiles (discovered 2 exits: [*Min x2]) -9/Mines -8/Materials -8/Storage -7/Factory -7/Lower Caves (discovered 2 exits: *Low / *Dat) -7/Data Miner -6/Proximity Caves -6/Factory (discovered 3 exits: Fac / *Low x2) -6/Lower Caves -6/Lower Caves (discovered 2 exits: Fac / *Zio) -6/Zion (discovered 1 exit: *Pro) History --------- Turn | Location | Event 14 | -11/Scrapyard | Discovered new exit (range 16) 75 | -11/Scrapyard | Entered Materials 92 | -10/Materials | Identified exit to Mines 304 | -10/Materials | Build established: Mutant 547 | -10/Materials | Discovered new exit (range 12) 1376 | -10/Materials | Entered Mines 1453 | -10/Mines | Found a damaged Exp. Sensor Array with a note attached 1460 | -10/Mines | Found Prototype Device 1636 | -10/Mines | Received a Mining Laser from a helpful Derelict 2477 | -10/Mines | Received a Rocket Launcher from a helpful Derelict 2894 | -10/Mines | Discovered new exit (range 3) 2952 | -10/Mines | Learned location of Zion (-6) 3004 | -10/Mines | Met a Derelict who couldn't figure out how to use a Trap Extractor 3366 | -10/Mines | Core integrity fell below 50% 3642 | -10/Mines | Discovered new exit (range 7) 3994 | -10/Mines | Deemed a non-threat by the Exiles lab entrance 4156 | -10/Mines | Discovered new exit (range 8) 4447 | -10/Mines | Discovered new exit (range 5) 4463 | -10/Mines | Entered Exiles 4463 | -10/Exiles | Accompanied by 2 allies 4493 | -10/Exiles | Led the pair of lost Derelicts to a safe place 4511 | -10/Exiles | Discovered new exit (range 15) 4553 | -10/Exiles | Met 8R-AWN 4607 | -10/Exiles | Met EX-HEX 4775 | -10/Exiles | Met EX-BIN 4907 | -10/Exiles | Aligned with FarCom system 4911 | -10/Exiles | Given EX-Vault access code 4984 | -10/Exiles | Opened EX-Vault 5020 | -10/Exiles | Found Prototype Processor 5020 | -10/Exiles | Identified 0b10 Alert Chip 5028 | -10/Exiles | Found Prototype Device 5028 | -10/Exiles | Identified Chronowheel 5028 | -10/Exiles | Activated Chronowheel 5028 | -10/Exiles | Spacetime reconverged on an earlier point 5039 | -10/Exiles | Found Deploy-a-Sentry 5044 | -10/Exiles | Found Deploy-a-Sentry 5048 | -10/Exiles | Found Deploy-a-Sentry 5119 | -10/Exiles | Warned to stay clear of 0b10 Research branches 5120 | -10/Exiles | Exiles lab attacked by MAIN.C 5318 | -10/Exiles | Discovered new exit (range 10) 5353 | -10/Exiles | Left Exiles lab with Deploy-a-Sentry 5353 | -10/Exiles | Entered Mines 5420 | -9/Mines | Discovered new exit (range 3) 5481 | -9/Mines | Core integrity fell below 20% 5541 | -9/Mines | Lost 3 parts (1p2w) 5616 | -9/Mines | Identified exit to Materials 5630 | -9/Mines | System corruption reached 10% 5632 | -9/Mines | Entered Materials 5632 | -8/Materials | Evolved 4 slots: Propulsion x1, Utility x3 5633 | -8/Materials | Identified Exp. Sensor Array 5707 | -8/Materials | Identified exit to Storage 6097 | -8/Materials | Garrison activated, responded to threat 6189 | -8/Materials | Build established: Skirmisher 6791 | -8/Materials | Entered Storage 7018 | -8/Storage | Lost 3 parts (2n1u) 7527 | -8/Storage | Garrison activated, responded to threat 8112 | -8/Storage | Build established: Mutant 8213 | -8/Storage | Core integrity fell below 50% 8248 | -8/Storage | Discovered new exit (range 15) 8297 | -8/Storage | Identified exit to Factory 8437 | -8/Storage | Entered Factory 8437 | -7/Factory | Evolved 2 slots: Propulsion x1, Utility x1 8733 | -7/Factory | DAS Turret deployed 8965 | -7/Factory | Discovered new exit (range 16) 8982 | -7/Factory | Identified exit to Lower Caves 9004 | -7/Factory | Build established: Hacker-Sprinter 9047 | -7/Factory | Entered Lower Caves 9162 | -7/Lower Caves | Learned Factory trap positions 9196 | -7/Lower Caves | Learned location of 1 exit from Factory 9202 | -7/Lower Caves | Encountered a Warlord checkpoint 9202 | -7/Lower Caves | Discovered new exit (range 16) 9206 | -7/Lower Caves | Identified exit to Lower Caves 9223 | -7/Lower Caves | A Derelict revealed a hidden shortcut to meet someone special 9225 | -7/Lower Caves | Identified exit to Data Miner 9276 | -7/Lower Caves | Entered Data Miner 9276 | -7/Data Miner | Discovered new exit (range 6) 9278 | -7/Data Miner | Identified exit to Proximity Caves 9282 | -7/Data Miner | Met Data Miner 9293 | -7/Data Miner | Learned location of Section 7 (-2) 9293 | -7/Data Miner | Acquired the access code to Warlord's prototype stash 9300 | -7/Data Miner | Received God Mode back door access code from Data Miner 9308 | -7/Data Miner | Entered Proximity Caves 9310 | -6/Proximity Caves | Attracted the attention of an 0b10 checkpoint 9310 | -6/Proximity Caves | Identified exit to Factory 9375 | -6/Proximity Caves | Spotted B-75 Beast 9398 | -6/Proximity Caves | Entered Factory 9398 | -6/Factory | Evolved 2 slots: Utility x2 9399 | -6/Factory | Identified exit to Factory 9400 | -6/Factory | Loaded intel: 107 trap records 9411 | -6/Factory | Identified exit to Lower Caves 9459 | -6/Factory | Repaired Cesium-ion Thruster 9665 | -6/Factory | Incoming investigation squad redirected 9670 | -6/Factory | Lost 8 parts (1p3n3u1w) 9776 | -6/Factory | Spotted B-75 Beast 9780 | -6/Factory | Core integrity fell below 50% 9796 | -6/Factory | Fabricated Biomechanical Wings? 9937 | -6/Factory | Build established: Mutant 9967 | -6/Factory | Entered Lower Caves 10083 | -6/Lower Caves | Spotted B-75 Beast 10163 | -6/Lower Caves | Attracted the attention of an 0b10 base 10165 | -6/Lower Caves | Identified exit to Lower Caves 10165 | -6/Lower Caves | Learned location of 1 exit from Lower Caves 10165 | -6/Lower Caves | Learned Factory trap positions 10165 | -6/Lower Caves | Learned Extension trap positions 10165 | -6/Lower Caves | Learned Armory trap positions 10165 | -6/Lower Caves | Learned Research emergency access door positions 10280 | -6/Lower Caves | Entered another Lower Caves area 10281 | -6/Lower Caves | Encountered a Warlord checkpoint 10372 | -6/Lower Caves | Attracted the attention of an 0b10 base 10396 | -6/Lower Caves | Learned location of 1 exit from Factory 10426 | -6/Lower Caves | Spotted B-75 Beast 10616 | -6/Lower Caves | Lost 5 parts (1p1n2u1w) 10688 | -6/Lower Caves | Discovered new exit (range 13) 10709 | -6/Lower Caves | Identified exit to Zion 10719 | -6/Lower Caves | Entered Zion 10828 | -6/Zion | Discovered new exit (range 12) 10840 | -6/Zion | Identified exit to Proximity Caves 11030 | -6/Zion | Learned 4 Factory zone layouts 11387 | -6/Zion | Build established: Derelict-Mutant 11953 | -6/Zion | Rebuked by Imprinter 12310 | -6/Zion | Received a hallucinogenic algorithm 12479 | -6/Zion | Given the Hacking Drone Bay 12479 | -6/Zion | Found Prototype Device 12479 | -6/Zion | Identified Hacking Drone Bay 12600 | -6/Zion | Given A8's code to call for help 12617 | -6/Zion | Learned Factory security intel 12923 | -6/Zion | Attempted to imprint without authorization 12923 | -6/Zion | Attacked by Zionites 12939 | -6/Zion | Core integrity fell below 20% 12949 | -6/Zion | Destroyed by 18-ERO(M) with Heavy Riot Gun Last Messages --------------- Or use another terminal to send them home, ha! 12768_ QQ-K1I(z) toys with the Twisted Machinery. HA-3X5(z): MAIN.C used to operate some outposts in the caves surrounding the new Complex 0b10, but many were recently abandoned for some reason. 12923_ IMPRINTER ALERT: Unauthorized bot attempting to interface! Defend our home! 12927_ 21-6IP(c) calibrates the Memory Banks. 12928_ 6T-FJF(c) calibrates the Memory Banks. 12932_ Neutrino Core destroyed. 12934_ 6T-FJF(c) calibrates the Memory Banks. 12935_ 21-6IP(c) calibrates the Memory Banks. 12936_ System corrupted: Energy discharge (-21). 12938_ 21-6IP(c) calibrates the Memory Banks. 12939_ 6T-FJF(c) calibrates the Memory Banks. 12946_ ECM Suite destroyed. 12946_ Hvy. Battle Rifle destroyed. 12946_ Chain reaction triggered in Imp. Deuterium Engine. 12946_ GV-MM8(M) destroyed. 12946_ Machine disabled. 12946_ Imp. Gravmag System destroyed. Map ----- +----------------------------------------------------+ | ?????????????????????????"||"# "" | | ?????????????????????????####" " | | ????????????????????????????##" | | ????????????????????????????#""" | | ????????????????????????????#"" """ | | ????????????????????????????##" """ | | ????????????????????????????##" "" | | ????????????????????????????#""" | | ???????????????????????###??#""" | | ????????????????????####"##?###"" | | ????????????????#####"#"""####""" " | | ?????############"""""""""""""""" """" | | ?????""""""""" #""" """""" """" " | | ????"""""""""" ###" "" """"" | | ?????" #""" "" """" | | ??????"""" ##"" """""" | | ??????""""" """" "" | | ??????""""" """" """" | | ??????""""" ""#" """ """"" | | ??????"""" ###" """"" """""""""""" | | ?????" #""" """"" """#""""""##" | | ????"""""""""" #""" "##"" ""#"#"" """""" | | ?????""""""""" ##"" """""""""""""" """"" | | ?????###########"#" "##""""##"""" | | ???????????#####""# "########"" | | ??????????##" ####@ ##?????#"" | | ??????????#" = #??????##" " | | ??????????#" =%! #???????#" """ " | | ??????????#" MM #??????#"" """ | | ??????????## #### #??????#""" """""" | | ???????????# c #??######??????##"" ""#""" | | ??????###### #####???????????#"" "#"#"" | | ??????"""""" """""???????????#"" """###"" | | ?????######" "######??????????""" """#?#"" | | ?????# " " " " #??????????"""""""####" | | ?????# " """ #?????????###"""""""#"# | | ?????#"""" " " #?????????#""" """""""" | | ?????#""""" """""#???????###"" """" """ | | ?????#""""" """" #???????#"""" """ "" | | ?????#" "" "" ""#???????#""" "" """ | | ?????#"" """" "" " #???????##" """ | | ?????#""""""" """""" #???????#""" | | ?????#"""" """"""""""#???????#""""""" | | ?????# " """"" #???????##"#""#""""" | | ?????? """""""""""" ?????????##""#"##""" | | ??????""""""""" """""??????????########""""" | | ????????? """"" ""????????????????????##""## | | ????????????""" "??????????????????????####? | | ??????????????? ??????????????????????????? | | ???????????????????????????????????????????? | +----------------------------------------------------+ Best States ------------- Heat Dissipation 64 Coolant Potential 65 Energy Generation 25 Energy Capacity 315 Matter Stores 300 Matter Capacity 300 Sight Range 16 Robot Scan Range 20 Terrain Scan Density 210 ECM Strength 1 Base Temperature (-) 150 Armor Coverage 150 Resistance: TH 10 Propulsion Shielding 66 Evasion (%) 64 Recoil Reduction 4 Offensive Hacking 30 Item Schematics ----------------- Hacking Suite | -8/Materials | Scanalyzed Combat Drone Bay | -7/Data Miner | Free Lgt. Regenerative Plating | -7/Data Miner | Free Biomechanical Wings | -7/Data Miner | Free Exp. Targeting Computer | -7/Data Miner | Free Shock Maul | -7/Data Miner | Free Arm. Medium Treads | -7/Data Miner | Free Adv. Cooling System | -7/Data Miner | Free Mass Driver | -7/Data Miner | Free Imp. Remote Shield | -7/Data Miner | Free Hyb. Antimatter Reactor | -7/Data Miner | Free Antimatter Reactor | -6/Zion | Archive System Guard | -6/Zion | Archive Imp. Shock Absorption System | -6/Zion | Archive Proton Cannon | -6/Zion | Archive Recoil Nullifier | -6/Zion | Archive Force Field | -6/Zion | Archive Imp. Transmission Jammer | -6/Zion | Archive Imp. Kinecellerator | -6/Zion | Archive Adv. Terrain Scanner | -6/Zion | Archive Adv. Cryofiber Web | -6/Zion | Archive Imp. Component Analysis Suite | -6/Zion | Archive Imp. Target Analyzer | -6/Zion | Archive Imp. Reaction Control System | -6/Zion | Archive Imp. Recalibrator | -6/Zion | Archive Robot Schematics ------------------ G-47 Trooper | -7/Data Miner | Free B-48 Gladiator | -7/Data Miner | Free M-28 Smith | -7/Data Miner | Free E-15 Imp | -7/Data Miner | Free H-66 Slayer | -7/Data Miner | Free Y-64 Sentinel | -7/Data Miner | Free L-41 Fighter | -7/Data Miner | Free G-50 Soldier | -6/Zion | Archive K-01 Serf | -6/Zion | Archive Y-54 Guardian | -6/Zion | Archive D-83 Annihilator | -6/Zion | Archive Fabricated ------------ Biomechanical Wings | x1 | -6/Factory Alien Tech Used ----------------- None Achievements -------------- Adventurer Explorer The Oracle Challenges ------------ None Game ------ Seed MissileSingularityPenetrator Manual? 0 Play Time 02:19:57 Cumulative 51.2 hours Start 2024.12.25 @ 23:53:01 End 2024.12.26 @ 02:51:32 Sessions 1 Manual Loads 0 Difficulty Rogue Special Mode None Game No. 35 Rogue 35 Adventurer 0 Explorer 0 Win Type - Total 0 Types 0/0/0/0/0/0/0/0/0 Lore% 20 Gallery% 29 Achievement% 27 Wizard Run 0 Options --------- Layout 0 ASCII 0 Keyboard 1 Movement Arrows Keybinds 0 Fullscreen 2 Font 18/Terminus Map View 76x50 Zoom Use 0% Tactical HUD 1 Map Filters NONE Filters NONE Steam 1 RUN: ed9e8a85-1791-4496-95ba-997eaf2545ab